[Event "CIS Master Groups 2024"]
[Site "Vasto"]
[Date "2024.04.12"]
[Round "7.1"]
[White "Favaloro, Andrea"]
[Black "Saric, Ivan"]
[Result "0-1"]
[ECO "D02"]
[WhiteElo "2412"]
[BlackElo "2670"]
[Annotator "TA"]
[PlyCount "66"]
[EventDate "2024.04.07"]
[EventType "team-tourn"]
[EventCountry "ITA"]
[SourceTitle "playchess.com"]
[Source "ChessBase"]
[SourceQuality "1"]
[TimeControl "40/5400+30:900+30"]

{[%evp 9,66,13,26,20,39,51,48,44,37,31,39,33,45,30,33,37,25,20,15,6,29,10,7,0,-6,0,0,0,0,-35,-14,-23,0,-42,-68,-96,-89,-104,-93,-108,-110,-99,-108,-100,-115,-426,-419,-617,606,-118,-106,-113,-117,-120,-118,-120,-124,-137,-137]} 1. Nf3 {[%emt 0:03:11]} d5 {[%emt 0:00:20]} 2. g3 {[%emt 0:00:14]} g6 {[%emt 0:00:18]} 3. Bg2 {[%emt 0:00:24]} Bg7 {[%emt 0:00:05]} 4. d4 {[%emt 0:00:11]} c6 {[%emt 0:00:20]} 5. c4 {[%emt 0:00:09]} dxc4 {[%emt 0:00:18]} 6. Na3 {[%emt 0:00:06]} b5 {[%emt 0:00:19] [#]} 7. Nxb5 $1 {[%emt 0:00:05]} cxb5 {[%emt 0:00:04]} 8. Nh4 $1 {[%emt 0:00:06] White is slightly better.} Bd7 {[%emt 0:00:09][%cal Bc8d7,Bd7c6,Bc6d5,Bd5e6][%mdl 32] ...Bc6 would now be deadly.} 9. Bxa8 {[%emt 0:00:10]} Nc6 {[%emt 0:00:03]} 10. Bxc6 {[%emt 0:00:14]} Bxc6 {[%emt 0:00:05]} 11. O-O {[%emt 0:00:10]} Qd5 {[%emt 0:00:30]} 12. f3 {[%emt 0:00:05]} Bxd4+ {[%emt 0:00:52] A strong pair of Bishops.} 13. e3 {[%emt 0:00:21]} Bc5 {[%emt 0:00:09]} 14. Qxd5 {[%emt 0:00:28]} Bxd5 {[%emt 0:00:05]} 15. Bd2 {[%emt 0:01:07]} e5 {[%emt 0:04:09]} 16. Ng2 {[%emt 0:02:13]} Ne7 {[%emt 0:01:43] White is weak on the light squares} 17. a3 {[%emt 0:17:12]} Nc6 {[%emt 0:08:20]} 18. Rad1 {[%emt 0:01:47][%cal Od2b4]} Be6 $1 {[%emt 0:00:39]} 19. Rc1 {[%emt 0:03:03]} O-O {[%emt 0:11:09]} 20. b4 {[%emt 0:08:49]} Be7 {[%emt 0:00:38][%cal Oa7a5]} 21. Bc3 {[%emt 0:16:20] [#]} a5 $1 {[%emt 0:01:33]} 22. Rb1 {[%emt 0:01:11]} (22. bxa5 $2 {perishes.} Bxa3 23. Rc2 Bc5 $19 (23... b4 24. Ra2 $17)) (22. Ra1 axb4) 22... axb4 {[%emt 0:00:12]} 23. axb4 {[%emt 0:01:59]} Ra8 $1 {[%emt 0:05:04]} 24. Ra1 {[%emt 0:10:03] [#]} Rxa1 {[%emt 0:10:29]} 25. Rxa1 {[%emt 0:00:05]} Bxb4 {[%emt 0:00:12]} ({Worse is} 25... Nxb4 26. Nf4 $16) 26. Bxb4 {[%emt 0:01:08]} Nxb4 $17 {[%emt 0:00:04][%mdl 4096] Endgame. KRN-KBN} 27. Rb1 $2 {[%emt 0:11:55][%mdl 8192]} (27. Ne1 $17 c3 28. Rb1) 27... Nd3 $19 {[%emt 0:01:08] ...c3 is the strong threat.} (27... c3 28. Ne1 (28. Rxb4 $2 {loses.} c2 $19) 28... c2 29. Rc1 $11) 28. Ne1 {[%emt 0:21:44] [#]} (28. Rxb5 $142 c3 29. Rb7) 28... Nb4 $4 {[%emt 0:55:33][%mdl 8192]} 29. Ra1 $2 (29. Rxb4 $18 Bd7 30. Nc2) 29... c3 $17 {Hoping for ...Na2.} 30. Rb1 c2 {[%emt 0:01:00] Black is more active.} 31. Nxc2 Nxc2 {[%emt 0:00:30]} 32. Rxb5 {[%emt 0:02:00]} e4 33. fxe4 {[%emt 0:00:30]} Nxe3 {Weighted Error Value: White=0.51/Black=0.22 (precise) .  Loses game:     	White=1     	---        Missed win:     	White=1     	Black=1      Mistake:       	White=1     	---        Inaccurate:     	White=3     	---        OK:         	White=9     	Black=9      Best:        	White=1     	Black=4      Strong:       	White=1     	Black=2      Brilliant:      	---       	Black=1} 0-1

[Event "CIS Master Groups 2024"]
[Site "Vasto"]
[Date "2024.04.12"]
[Round "7.2"]
[White "Brunello, Sabino"]
[Black "Iturrizaga Bonelli, Eduardo"]
[Result "0-1"]
[ECO "D10"]
[WhiteElo "2515"]
[BlackElo "2589"]
[Annotator "TA"]
[PlyCount "64"]
[EventDate "2024.04.07"]
[EventType "team-tourn"]
[EventCountry "ITA"]
[SourceTitle "playchess.com"]
[Source "ChessBase"]
[SourceQuality "1"]
[TimeControl "40/5400+30:900+30"]

{[%evp 9,63,0,0,9,9,6,49,49,30,7,14,20,10,9,46,50,61,49,76,81,94,82,122,129,131,104,145,150,141,-56,0,0,18,0,0,-131,-133,-217,-217,-225,-220,-220,-218,-225,-219,-214,-197,-183,-179,-291,-352,-375,-349,-365,-342,-29999]} 1. c4 {[%emt 0:00:03]} c6 {[%emt 0:04:35]} 2. d4 {[%emt 0:06:27]} Nf6 {[%emt 0:00:21]} 3. Nc3 {[%emt 0:11:35]} d5 {[%emt 0:00:20]} 4. e3 {[%emt 0:01:24]} Bf5 {[%emt 0:00:17]} 5. f3 {[%emt 0:00:23]} e6 {[%emt 0:07:55]} 6. g4 {[%emt 0:01:12][%cal Bg2g4,Bg4g5][%mdl 32]} Bg6 {[%emt 0:00:08]} 7. h4 $1 {[%emt 0:00:06]} h5 {[%emt 0:08:08] And now ...hxg4 would win.} 8. g5 {[%emt 0:02:40] White is slightly better.} Ng8 {[%emt 0:00:05]} 9. Nge2 {[%emt 0:01:27]} Bd6 $1 {[%emt 0:00:22]} 10. e4 {[%emt 0:21:28]} Ne7 {[%emt 0:03:41]} 11. Bh3 {[%emt 0:09:55]} Nd7 {[%emt 0:13:45][%cal Bb8d7,Bd7e5,Be5g6][%mdl 32]} 12. O-O {[%emt 0:02:33]} O-O {[%emt 0:08:46]} 13. Nf4 {[%emt 0:10:49]} e5 {[%emt 0:44:24]} 14. dxe5 {[%emt 0:08:13]} Nxe5 {[%emt 0:02:08]} 15. cxd5 {[%emt 0:00:25]} Re8 {[%emt 0:02:28]} 16. Nxg6 {[%emt 0:06:07]} N5xg6 {[%emt 0:00:28]} 17. f4 {[%emt 0:02:18] Hoping for f5.} cxd5 {[%emt 0:00:17]} 18. f5 {[%emt 0:00:03]} (18. Qxh5 Bc5+ 19. Kg2 d4 $14) (18. Nxd5 Nxd5 (18... Nxh4 19. Nxe7+ Bxe7 20. Be3 $16) 19. Qxd5 Qb6+ 20. Kh1 Rad8 $15) (18. exd5 Nxh4 19. f5 (19. Qxh5 Nef5 $17) 19... Qb6+ 20. Kh1 Qb4 $19 (20... g6 21. fxg6 Nexg6 22. Qxh5 $14)) 18... Ne5 {[%emt 0:00:34]} 19. exd5 {[%emt 0:04:31]} (19. Nxd5 Nxd5 20. Qxd5 Qb6+ 21. Kh1 Rad8 $11) (19. Qxh5 $16 {Black must now prevent Be3.} dxe4 20. Nxe4) 19... Bb4 {[%emt 0:00:25]} (19... Rc8 $1 $15 20. Bf4 (20. Qxh5 Rc4 $11) 20... Rc4) 20. f6 {[%emt 0:06:07]} Bxc3 {[%emt 0:00:05]} 21. bxc3 {[%emt 0:00:05]} (21. fxe7 {feels hotter.} Qb6+ 22. Kh1 Bb4 23. Bf4) 21... Nxd5 {[%emt 0:00:07][%cal Be7d5,Bd5c3,Bc3e2,Be2g3][%mdl 32]} 22. fxg7 {[%emt 0:01:20]} (22. Qxh5 $11 Ng6 (22... g6 $2 23. Qh6 $18) 23. Bf5 Qb6+ 24. Kh1) 22... Nxc3 $17 {[%emt 0:01:07]} 23. Qxh5 {[%emt 0:00:07] [#]} (23. Qxd8 $17 Raxd8 24. g6 Nxg6 (24... Ne2+ 25. Kh2 $15) 25. Bg5) 23... Ng6 $1 $19 {[%emt 0:00:14] ...Ne2+ is the strong threat. Excellent horsemanship.} 24. Qf3 {[%emt 0:00:58]} (24. Bb2 $2 Ne2+ (24... Qb6+ $2 25. Kh1 $19) 25. Kh1 Ng3+ 26. Kg1 Nxh5 $19) 24... Ne2+ {[%emt 0:00:34]} 25. Kh1 {[%emt 0:00:36]} Qc7 {[%emt 0:00:02]} 26. Bb2 {[%emt 0:00:26]} Nxh4 {[%emt 0:00:10]} (26... Ng3+ 27. Kg1) 27. Qf2 {[%emt 0:01:12]} Ng3+ {[%emt 0:00:11]} 28. Kg1 {[%emt 0:00:04]} Re2 {[%emt 0:00:29]} 29. Rac1 {[%emt 0:01:45]} (29. Be5 $142 Rxe5 (29... Qxe5 30. Qxf7+ Kh7 31. g8=Q#) 30. Qxg3 Qc5+ 31. Qf2) 29... Rxf2 {[%emt 0:01:03]} 30. Rxc7 {[%emt 0:00:06]} Rxb2 {[%emt 0:00:07]} 31. Rfxf7 {[%emt 0:00:05]} Re8 {[%emt 0:01:21]} (31... Rxa2 32. Rf8+ (32. Rxb7 Ne2+ 33. Kf2 Nd4+ 34. Ke3 Ra3+ 35. Kxd4 Rxh3 $15) 32... Rxf8 33. Be6+ $18) 32. Be6 $2 {[%emt 0:00:24] [#]} (32. Rf8+ $19 Rxf8 33. Be6+ Rf7 34. Bxf7+ Kxg7 35. Bd5+ Kg6 36. a4) 32... Rg2# {[%emt 0:00:03] Weighted Error Value: White=0.49/Black=0.10 (very precise) .  Mistake:       	White=5     	Black=1      Inaccurate:     	---       	Black=4      OK:         	White=10    	Black=11     Best:        	White=5     	Black=3      Strong:       	White=1     	Black=2} 0-1

[Event "CIS Master Groups 2024"]
[Site "Vasto"]
[Date "2024.04.12"]
[Round "7.4"]
[White "Gilevych, Artem"]
[Black "Bertagnolli, Alexander"]
[Result "1-0"]
[ECO "B22"]
[WhiteElo "2417"]
[BlackElo "2333"]
[Annotator "TA"]
[PlyCount "85"]
[EventDate "2024.04.07"]
[EventType "team-tourn"]
[EventCountry "ITA"]
[SourceTitle "playchess.com"]
[Source "ChessBase"]
[SourceQuality "1"]
[TimeControl "40/5400+30:900+30"]

{[%evp 12,85,27,12,49,49,81,58,54,60,66,58,58,76,89,81,123,118,161,160,160,145,185,177,296,278,320,333,556,446,455,464,533,554,487,392,326,328,545,281,246,223,246,279,291,256,359,353,358,348,450,472,615,560,672,687,727,685,745,779,772,761,1155,906,1168,1145,1434,1329,1266,1270,29996,29997,29997,29998,29998,888]} 1. e4 {[%emt 0:01:19]} c5 {[%emt 0:00:06]} 2. c3 {[%emt 0:00:17]} Nf6 {[%emt 0:03:07]} 3. e5 {[%emt 0:00:30]} Nd5 {[%emt 0:00:11]} 4. Nf3 {[%emt 0:00:06]} e6 {[%emt 0:00:22]} 5. d4 {[%emt 0:00:48]} cxd4 {[%emt 0:00:31]} 6. cxd4 {[%emt 0:02:28]} b6 {[%emt 0:01:24]} 7. Bd2 {[%emt 0:00:27]} Na6 {[%emt 0:03:06]} 8. Nc3 {[%emt 0:04:42]} Nxc3 {[%emt 0:03:34]} 9. bxc3 {[%emt 0:02:47]} ({Reject} 9. Bxc3 Bb7 $11) 9... Be7 {[%emt 0:01:58] Repels Ng5. White is slightly better.} 10. Bd3 {[%emt 0:01:57]} Bb7 {[%emt 0:00:27]} 11. h4 {[%emt 0:02:58]} h6 {[%emt 0:01:57] Against Ng5} 12. Rh3 {[%emt 0:02:12]} Nc7 {[%emt 0:06:35]} 13. h5 {[%emt 0:08:17]} Bc6 {[%emt 0:14:11]} 14. Kf1 {[%emt 0:07:49]} Qc8 {[%emt 0:04:47]} 15. Rg3 {[%emt 0:03:54]} Bf8 {[%emt 0:02:18]} 16. a4 {[%emt 0:08:06] White is more active.} Qb7 {[%emt 0:01:14]} 17. Qe2 {[%emt 0:00:11]} O-O-O {[%emt 0:14:20]} (17... a6 {might work better.} 18. c4 Rb8) 18. c4 $18 {[%emt 0:02:02]} d6 {[%emt 0:04:27]} 19. a5 {[%emt 0:07:31]} f6 $2 {[%emt 0:04:01]} (19... d5 20. a6 (20. axb6 axb6 21. c5 bxc5 $18) 20... Qa8) 20. axb6 {[%emt 0:03:01]} axb6 {[%emt 0:00:12] Black is weak on the dark squares} 21. exf6 {[%emt 0:22:36]} gxf6 {[%emt 0:00:07] [#]} 22. d5 $1 {[%emt 0:01:00][%mdl 512]} exd5 {[%emt 0:01:23]} 23. Nd4 {[%emt 0:02:16]} dxc4 {[%emt 0:00:19]} 24. Bxc4 {[%emt 0:07:14]} d5 $2 {[%emt 0:01:05]} (24... Re8 {keeps fighting.}) 25. Nxc6 {[%emt 0:04:12]} Qxc6 {[%emt 0:00:21]} 26. Bd3 {[%emt 0:00:17] [#] Threatens to win with Bf4. A strong pair of Bishops.} Re8 {[%emt 0:03:36]} 27. Qf3 {[%emt 0:00:57]} Kb7 {[%emt 0:02:42]} 28. Rg6 {[%emt 0:00:04]} Re6 {[%emt 0:02:59]} (28... Bc5 $142 29. Rb1 (29. Rxf6 Re6 $18) 29... Bd4 30. Bxh6 (30. Rxh6 Rxh6 31. Bxh6 Ra8 $18) 30... Qc3) 29. Rc1 {[%emt 0:00:21]} Bc5 {[%emt 0:00:18]} 30. Rxh6 {[%emt 0:01:01]} Rhe8 {[%emt 0:00:00]} 31. Rh7 {[%emt 0:00:12]} Kb8 {[%emt 0:09:41]} 32. g4 {[%emt 0:00:44]} R8e7 {[%emt 0:01:30]} 33. Rxe7 {[%emt 0:00:15]} Rxe7 {[%emt 0:00:01]} 34. h6 {[%emt 0:00:28][%cal Bh5h6,Bh6h7][%mdl 32]} Qe8 {[%emt 0:01:32]} 35. h7 {[%emt 0:01:14]} Qh8 {[%emt 0:00:48]} 36. Qf5 {[%emt 0:02:04]} Bd6 {[%emt 0:00:10]} 37. Re1 {[%emt 0:00:45] Black must now prevent Rxe7.} Rxe1+ {[%emt 0:02:55]} 38. Bxe1 {[%emt 0:00:06] Qg6 would now be deadly.} Be5 {[%emt 0:00:14]} 39. Qg6 {[%emt 0:01:15]} f5 {[%emt 0:00:00]} 40. Qxb6+ {[%emt 0:00:10]} Kc8 {[%emt 0:00:20]} 41. Bxf5+ {[%emt 0:15:18] White mates.} ({Less strong is} 41. gxf5 Qxh7 42. Qg6 Qe7 43. Ba6+ Kd7 $14) 41... Kd8 {[%emt 0:15:01]} 42. Bb4 {[%emt 0:01:18][%cal Rb6b8]} Ke8 {[%emt 0:00:29]} 43. Qg6+ {[%emt 0:00:19] White took control after the opening.   Weighted Error Value: White=0.24 (precise) /Black=0.80.  Mistake:       	---       	Black=4      Inaccurate:     	White=1     	Black=4      OK:         	White=12    	Black=4} (43. Qc6+ $142 Kf7 44. Qg6#) 1-0

[Event "CIS Master Groups 2024"]
[Site "Vasto"]
[Date "2024.04.12"]
[Round "7.5"]
[White "Fier, Alexandr"]
[Black "Livaic, Leon"]
[Result "1-0"]
[ECO "C18"]
[WhiteElo "2566"]
[BlackElo "2549"]
[Annotator "RC"]
[PlyCount "55"]
[EventDate "2024.04.07"]
[EventType "team-tourn"]
[EventCountry "ITA"]
[SourceTitle "playchess.com"]
[Source "ChessBase"]
[SourceQuality "1"]
[TimeControl "40/5400+30:900+30"]

1. e4 {[%emt 0:00:03]} e6 {[%emt 0:00:25]} 2. d4 {[%emt 0:00:05]} d5 {[%emt 0:00:03]} 3. Nc3 {[%emt 0:00:04]} Bb4 {[%emt 0:00:11]} 4. e5 {[%emt 0:00:05]} c5 {[%emt 0:00:05]} 5. a3 {[%emt 0:00:03]} Bxc3+ {[%emt 0:00:04]} 6. bxc3 {[%emt 0:00:04]} Qa5 {[%emt 0:01:18]} 7. Bd2 {[%emt 0:00:05]} Qa4 {[%emt 0:00:14]} 8. Qg4 {[%emt 0:00:15]} g6 {[%emt 0:00:37]} 9. h4 {[%emt 0:02:24]} Nc6 {[%emt 0:04:42]} 10. h5 {[%emt 0:00:21]} Qxc2 {[%emt 0:06:34]} 11. Rc1 {[%emt 0:02:30]} Qf5 {[%emt 0:03:13]} 12. Qg3 {[%emt 0:00:05]} cxd4 {[%emt 0:01:51]} 13. cxd4 {[%emt 0:16:06]} Qe4+ {[%emt 0:01:09]} 14. Ne2 {[%emt 0:03:18]} Nge7 {[%emt 0:01:11]} 15. Qc3 {[%emt 0:03:38]} gxh5 {[%emt 0:01:50]} 16. Rxh5 {[%emt 0:00:25]} h6 {[%emt 0:01:12]} 17. f3 {[%emt 0:05:45]} Qg6 {[%emt 0:00:09]} 18. g4 {[%emt 0:00:03]} Bd7 {[%emt 0:04:55]} 19. Qb2 {[%emt 0:02:34]} b6 {[%emt 0:05:07]} 20. Nf4 {[%emt 0:05:01]} Qg7 {[%emt 0:00:07]} 21. Ba6 {[%emt 0:00:06]} Rb8 {[%emt 0:09:52]} 22. Rh2 {[%emt 0:00:13]} b5 {[%emt 0:02:56]} 23. Nh5 {[%emt 0:01:07]} Qg6 {[%emt 0:00:03]} 24. Nf6+ {[%emt 0:00:04]} Kd8 {[%emt 0:00:05]} 25. Bxb5 {[%emt 0:04:21]} a6 {[%emt 0:02:12]} 26. Bxc6 {[%emt 0:01:41]} Nxc6 {[%emt 0:00:33]} 27. Qc3 {[%emt 0:00:04]} Rb1 {[%emt 0:01:11]} 28. Qc5 {[%emt 0:00:37]} 1-0

[Event "CIS Master Groups 2024"]
[Site "Vasto"]
[Date "2024.04.12"]
[Round "7.6"]
[White "Casadio, Niccolo`"]
[Black "Iermito, Sebastian"]
[Result "0-1"]
[ECO "C79"]
[WhiteElo "2309"]
[BlackElo "2511"]
[Annotator "TA"]
[PlyCount "58"]
[EventDate "2024.04.07"]
[EventType "team-tourn"]
[EventCountry "ITA"]
[SourceTitle "playchess.com"]
[Source "ChessBase"]
[SourceQuality "1"]
[TimeControl "40/5400+30:900+30"]

{[%evp 12,58,50,32,37,19,43,17,11,0,0,-31,-13,-26,-5,-27,0,-66,-81,-89,-91,-75,-81,-72,-60,-85,-51,-50,-60,-66,-66,-66,-75,-77,-18,-28,-36,-278,-281,-294,-287,-251,-258,-1925,-1859,-1720,-1697,-1652,-1637]} 1. e4 {[%emt 0:00:03]} e5 {[%emt 0:00:03]} 2. Nf3 {[%emt 0:00:05]} Nc6 {[%emt 0:00:04]} 3. Bb5 {[%emt 0:00:06]} a6 {[%emt 0:00:07]} 4. Ba4 {[%emt 0:00:06]} Nf6 {[%emt 0:00:05]} 5. O-O {[%emt 0:00:11]} d6 {[%emt 0:00:04]} 6. c3 {[%emt 0:00:23]} Bd7 {[%emt 0:00:15]} 7. d4 {[%emt 0:00:16]} exd4 {[%emt 0:01:30]} 8. cxd4 {[%emt 0:02:15] Black should prevent Re1.} Nxe4 {[%emt 0:00:06]} 9. Re1 {[%emt 0:06:35]} d5 {[%emt 0:00:05] The position is equal.} 10. Nc3 {[%emt 0:12:09]} Bb4 {[%emt 0:00:10]} 11. Ng5 {[%emt 0:01:26]} O-O {[%emt 0:04:43][%csl LRc3,LRg5]} 12. Ngxe4 {[%emt 0:03:05]} dxe4 {[%emt 0:00:05]} 13. Rxe4 {[%emt 0:02:54]} Na5 {[%emt 1:29:43]} 14. Qh5 {[%emt 1:07:56]} (14. Bf4 $11) 14... Bxa4 $15 {[%emt 0:00:30]} 15. Nxa4 {[%emt 0:00:30] Hoping for Rh4.} Re8 {[%emt 0:00:30]} 16. Rxe8+ {[%emt 0:00:00]} Qxe8 {[%emt 0:00:00][%cal Re8e1]} 17. Qd1 {[%emt 0:01:00]} Rd8 $40 {[%emt 0:01:00][%cal Od8d4][%mdl 128] White must now prevent ...Rxd4! Black has some attack. Black is more active.} 18. Bg5 {[%emt 0:00:30] White is weak on the light squares} Rd5 {[%emt 0:00:00]} 19. Be3 {[%emt 0:00:00]} Nc4 20. Qb3 {[%emt 0:01:00][%csl LRb4,LRc4]} Nxe3 {[%emt 0:00:00]} 21. fxe3 {[%emt 0:00:00]} Rb5 {[%emt 0:00:00]} 22. Qd3 {[%emt 0:00:00] Against Bd2} Bd6 {[%emt 0:00:00]} (22... Qc6 $17 {And now ...Rg5 would win.} 23. b3 Rd5) 23. b3 $11 {[%emt 0:00:00]} Rh5 {[%emt 0:00:00]} 24. g3 $2 {[%emt 0:00:00] [#] White does not recover from this.} ({Only move:} 24. h3 $1 $15) 24... Qe6 $1 $19 {[%emt 0:00:00]} 25. Qe2 {[%emt 0:00:00] [#]} Qh6 {[%emt 0:00:00][%cal Od6g3] aiming for ...Bxg3!} 26. Qf3 {[%emt 0:00:00]} Rxh2 {[%emt 0:00:00]} 27. e4 $2 {[%emt 0:00:00] [#]} (27. Rf1 f6 (27... Rxa2 28. Qxf7+ Kh8 29. Qe8+) 28. Nc3) 27... Bxg3 $1 {[%emt 0:00:00][%mdl 512] Black is clearly winning.} 28. Rf1 {[%emt 0:00:00] [#]} Bf4 $1 {[%emt 0:00:00][%mdl 512] ( -> ...Qg5+)} 29. Rf2 {[%emt 0:00:00]} Rh3 {[%emt 0:00:00] Weighted Error Value: White=0.57/Black=0.07 (flawless) .  Loses game:     	White=1     	---        Mistake:       	White=2     	Black=1      Inaccurate:     	White=2     	Black=2      OK:         	White=8     	Black=8      Best:        	White=3     	Black=6      Strong:       	---       	Black=1} 0-1

[Event "CIS Master Groups 2024"]
[Site "Vasto"]
[Date "2024.04.12"]
[Round "7.7"]
[White "Godena, Michele"]
[Black "Sorbera, Giovanni"]
[Result "1-0"]
[ECO "C54"]
[WhiteElo "2429"]
[BlackElo "2148"]
[Annotator "TA"]
[PlyCount "85"]
[EventDate "2024.04.07"]
[EventType "team-tourn"]
[EventCountry "ITA"]
[SourceTitle "playchess.com"]
[Source "ChessBase"]
[SourceQuality "1"]
[TimeControl "40/5400+30:900+30"]

{[%evp 12,85,17,23,31,30,22,0,12,6,21,25,27,25,37,-3,68,82,184,185,195,213,204,156,259,268,354,337,348,321,349,357,331,348,343,333,336,242,241,235,241,254,243,239,396,406,451,465,468,470,530,523,579,587,628,612,625,632,702,700,725,682,724,677,931,904,904,876,1062,960,1303,1258,1502,1506,5197,5214]} 1. e4 {[%emt 0:00:03]} e5 {[%emt 0:00:22]} 2. Nf3 {[%emt 0:00:11]} Nc6 {[%emt 0:00:12]} 3. Bc4 {[%emt 0:01:05]} Nf6 {[%emt 0:00:21]} 4. d3 {[%emt 0:00:20]} Bc5 {[%emt 0:00:19]} 5. c3 {[%emt 0:02:42]} d6 {[%emt 0:00:15][%cal Bd7d6,Bd6d5][%mdl 32]} 6. Bb3 {[%emt 0:02:57]} a6 {[%emt 0:03:24]} 7. Nbd2 {[%emt 0:09:09]} Qe7 {[%emt 0:09:07]} 8. h3 {[%emt 0:05:06]} Be6 {[%emt 0:04:20]} 9. Nf1 {[%emt 0:08:39]} d5 {[%emt 0:02:30] The position is equal.} 10. Ng3 {[%emt 0:13:45]} O-O-O {[%emt 0:01:19] [#] And now ...dxe4 would win.} 11. Qe2 {[%emt 0:10:04]} h6 {[%emt 0:05:48]} 12. O-O {[%emt 0:07:32]} g5 {[%emt 0:02:00][%cal Bg7g5,Bg5f4][%mdl 32]} 13. exd5 {[%emt 0:03:54]} (13. Ba4 {simplifies} dxe4 14. dxe4 b5 15. Bb3) 13... Nxd5 {[%emt 0:09:27]} (13... Bxd5 $11 14. Re1 Rhe8) 14. Nxe5 $14 {[%emt 0:01:18] White now steadily converts the win.} Nf4 {[%emt 0:06:45]} (14... Nxe5 $16 15. Qxe5 Bd6) 15. Bxf4 $18 {[%emt 0:00:34]} gxf4 {[%emt 0:00:07]} 16. Nxc6 {[%emt 0:00:49]} bxc6 {[%emt 0:03:46]} 17. Bxe6+ {[%emt 0:00:15]} fxe6 {[%emt 0:06:01]} (17... Qxe6 $16 {was called for.} 18. Qxe6+ fxe6) 18. Ne4 {[%emt 0:00:12] Strongly threatening d4.} Rhg8 {[%emt 0:02:22][%cal Oe7g7]} 19. d4 {[%emt 0:11:23]} Bb6 {[%emt 0:00:10]} 20. Qxa6+ {[%emt 0:00:34]} Kb8 {[%emt 0:00:05]} 21. Kh2 {[%emt 0:01:23]} e5 {[%emt 0:01:41]} 22. b4 {[%emt 0:04:37] [#] aiming for Nc5.} Qe6 {[%emt 0:06:37] ...Qg6 is the strong threat.} 23. Nc5 {[%emt 0:00:51]} Qc8 {[%emt 0:00:27] Repels Qb7+} 24. Qxc8+ {[%emt 0:00:30]} Kxc8 {[%emt 0:00:03]} 25. Rad1 {[%emt 0:03:43]} ({Don't take} 25. dxe5 Bxc5 26. bxc5 Rd3 $18) 25... exd4 {[%emt 0:00:17]} 26. cxd4 {[%emt 0:00:04]} Rg6 {[%emt 0:04:23]} 27. g4 {[%emt 0:04:38]} Rgd6 $2 {[%emt 0:01:43]} (27... fxg3+ {keeps fighting.} 28. fxg3 Rgd6) 28. Rfe1 {[%emt 0:00:41]} Bxc5 {[%emt 0:01:55]} 29. bxc5 {[%emt 0:00:05][%mdl 4096] Endgame. KRR-KRR. White is clearly winning.} Rf6 {[%emt 0:01:11]} 30. Re4 {[%emt 0:00:49]} Kd7 {[%emt 0:00:04]} 31. a4 {[%emt 0:01:14][%cal Ba2a4,Ba4a5,Ba5a6,Ba6a7][%mdl 32]} Rb8 {[%emt 0:00:36]} 32. Ra1 {[%emt 0:01:55]} Rb2 {[%emt 0:00:29]} 33. Kg2 {[%emt 0:01:18]} Kc8 {[%emt 0:05:03]} 34. a5 {[%emt 0:00:08]} Rf8 {[%emt 0:00:41]} 35. a6 {[%emt 0:00:24]} Kb8 {[%emt 0:00:02]} 36. a7+ {[%emt 0:00:38]} Ka8 {[%emt 0:00:02]} 37. Re6 {[%emt 0:02:31][%csl LRc6,LRh6]} Rd2 {[%emt 0:01:06]} 38. Rxh6 {[%emt 0:00:33]} Rxd4 {[%emt 0:00:28]} 39. Rxc6 {[%emt 0:00:07]} f3+ {[%emt 0:00:16]} 40. Kg3 {[%emt 0:00:08]} Rh8 {[%emt 0:00:16]} 41. Rf6 {[%emt 0:15:24]} Rd7 {[%emt 0:15:20]} 42. Rb1 {[%emt 0:00:32]} Rdh7 {[%emt 0:00:34]} 43. Rb8+ {[%emt 0:00:10] Weighted Error Value: White=0.14 (very precise) /Black=0.33.  Mistake:       	---       	Black=4      Inaccurate:     	White=1     	Black=1      OK:         	White=18    	Black=8      Best:        	White=1     	Black=1} 1-0